bitfinex/quotes_ETHUSD_20220309
["timestamp","ask_amount","ask_price","bid_price","bid_amount"]
[1646846988995,1.0,2743.3,2743.1,0.024753]
[1646846989195,1.0,2743.3,2743.1,0.11432206]
[1646846989596,1.0,2743.2,2743.1,0.11818661]
[1646846990299,1.3,2743.2,2743.1,0.11818661]
[1646846990498,1.3,2743.2,2743.1,0.11432206]
[1646846991098,1.0,2743.2,2743.1,0.13049106]
[1646846991300,1.0,2743.3,2743.1,0.13049106]
[1646846991599,1.0,2743.3,2743.1,0.11873706]
[1646846991799,1.0,2743.3,2743.2,0.014422]
[1646846992000,4.68061202,2743.8,2743.2,0.378222]
[1646846992201,1.8234612,2744.3,2743.7,0.012125]
[1646846992202,3.0,2744.2,2743.7,0.012125]
[1646846992399,3.0,2744.2,2743.9,0.012125]
[1646846992649,3.0,2744.2,2744.0,0.012046]
[1646846992853,3.0,2744.2,2743.9,0.012125]
[1646846993048,1.0,2744.0,2743.9,0.011753]
[1646846993249,1.0,2744.1,2743.9,0.011753]
[1646846993449,1.0,2744.0,2743.9,0.011753]
[1646846993849,1.0,2744.0,2743.8,0.023792]
[1646846994148,1.211696,2744.1,2743.8,0.012125]
[1646846994149,1.0,2743.9,2743.8,0.012125]
[1646846994350,1.0,2743.9,2743.7,0.011667]
[1646846994649,1.0,2743.9,2743.3,0.02719857]
[1646846994650,1.0,2743.8,2743.3,0.02719857]
[1646846994849,1.0,2743.8,2743.3,0.01553157]
[1646846995048,1.2117,2743.9,2743.3,0.01553157]
[1646846995049,1.0,2743.6,2743.3,0.01553157]
[1646846995252,1.0,2743.4,2743.3,0.01553157]
[1646846995453,1.0,2743.4,2743.3,0.011791]
[1646846995651,1.3,2743.4,2743.3,1.51826759]
[1646846996309,1.3,2743.4,2743.3,0.00386435]
[1646846996704,1.3,2743.4,2742.9,1.52618907]
[1646846996901,1.3,2743.4,2743.2,0.00386437]
[1646846997102,0.3,2743.4,2743.2,0.00386437]
[1646846997300,2.3498414,2743.5,2743.2,0.00386437]
[1646846997301,2.6498414,2743.5,2743.2,0.00386437]
[1646846997502,1.0,2743.3,2743.2,0.00386437]
[1646846997704,1.3,2743.3,2743.0,1.52618907]
[1646846997903,1.3,2743.3,2743.1,1.51452207]
[1646846998106,1.0,2743.1,2743.0,0.011667]
[1646846998303,1.0,2743.1,2742.9,0.011819]
[1646846998304,0.3,2743.1,2742.9,0.011819]
[1646846998506,0.3,2743.1,2743.0,1.51452928]
[1646846998704,1.0,2743.2,2743.0,1.51452928]
[1646846998705,1.21191,2743.2,2743.0,1.51452928]
[1646846998906,1.21191,2743.2,2743.0,1.52622328]
[1646846999106,1.21191,2743.2,2743.1,1.51452928]
[1646846999505,2.21191,2743.2,2743.1,1.51452928]
[1646846999705,1.3,2743.2,2743.1,1.51452928]
[1646846999905,0.3,2743.2,2743.1,1.53818728]
[1646847000141,0.3,2743.2,2743.1,1.60575242]
[1646847000142,1.3,2743.2,2743.1,1.60575242]
[1646847000945,1.3,2743.2,2743.1,1.61765242]
[1646847001950,1.3,2743.2,2743.1,1.53815128]
[1646847003354,1.3,2743.2,2743.1,1.52625128]
[1646847003551,1.3,2743.2,2743.1,1.51452928]
[1646847003803,1.3,2743.2,2743.0,1.52619628]
[1646847003994,1.5084145,2743.2,2743.0,0.011667]
[1646847004195,0.3,2743.2,2743.1,1.51454784]
[1646847004395,1.3,2743.2,2743.1,1.52623084]
[1646847004595,1.0,2743.2,2743.1,1.55539884]
[1646847004795,1.0,2743.5,2743.1,1.55539884]
[1646847004995,1.0,2743.5,2743.3,0.012125]
[1646847005197,1.3,2743.5,2743.4,1.51454784]
[1646847005398,0.3,2743.5,2743.4,1.51454784]
[1646847005598,1.0,2743.7,2743.4,1.51454784]
[1646847005799,1.0,2743.7,2743.4,1.52632984]
[1646847006103,0.3,2743.7,2743.5,1.51454784]
[1646847006298,1.0,2743.8,2743.5,1.52651584]
[1646847006299,0.3,2743.8,2743.5,1.52651584]
[1646847006498,1.3,2743.8,2743.6,1.52655884]
[1646847006699,1.0,2743.8,2743.7,1.51454784]
[1646847006901,0.3,2743.9,2743.7,1.51454784]
[1646847007102,1.0,2743.8,2743.7,1.51454784]
[1646847007303,1.3,2743.8,2743.7,1.51454784]
[1646847007769,2.21175,2743.8,2743.7,1.51454784]
[1646847007973,2.21175,2743.8,2743.3,0.01578371]
[1646847008170,1.82394,2743.6,2743.4,1.51448009]
[1646847008776,1.9118,2743.5,2743.4,1.51448009]
[1646847009170,1.9118,2743.5,2743.4,2.30827493]
[1646847009369,1.9118,2743.5,2743.4,2.32019893]
[1646847009773,1.9118,2743.5,2743.4,2.32004993]
[1646847009975,1.9118,2743.5,2743.4,2.30827493]
[1646847010578,1.0,2743.5,2743.4,2.32004093]
[1646847011800,1.0,2743.5,2743.4,2.33193793]
[1646847012201,1.0,2743.5,2743.4,2.42246779]
[1646847014609,1.0,2743.5,2743.4,2.41057079]
[1646847015258,1.0,2743.5,2743.4,2.39880479]
[1646847015460,1.0,2743.5,2743.4,2.30827493]
[1646847016860,0.9,2743.5,2743.4,2.30827493]
[1646847017260,2.60390303,2743.6,2743.4,2.30827493]
[1646847017564,1.0,2743.5,2743.4,0.39689742]
[1646847017762,2.82412,2743.5,2743.4,1.51442743]
[1646847017963,3.35012,2743.5,2743.4,0.39689742]
[1646847018163,3.35012,2743.5,2743.4,1.91132485]
[1646847019008,2.82412,2743.5,2743.4,1.91132485]
[1646847020015,1.0,2743.5,2743.4,1.91132485]
[1646847022217,1.3,2743.6,2743.4,1.91132485]
[1646847022417,1.3,2743.6,2743.5,1.52634543]
[1646847022654,1.0,2743.6,2743.5,1.51442743]
[1646847022954,1.0,2743.6,2743.5,1.91132485]
[1646847023357,1.0,2743.6,2743.5,2.30822227]
[1646847023753,1.0,2743.6,2743.5,2.38028211]
[1646847024154,0.911778,2743.8,2743.6,0.61518887]
[1646847024357,0.911778,2743.8,2743.7,1.51442743]
[1646847024554,2.123538,2743.8,2743.7,1.51442743]
[1646847024755,3.123538,2743.8,2743.7,1.51442743]
[1646847025558,2.21176,2743.8,2743.7,1.51442743]
[1646847026158,1.91176,2743.8,2743.7,1.51442743]
[1646847026599,0.91176,2743.8,2743.7,1.51442743]
[1646847027003,1.91176,2743.8,2743.7,1.51442743]
[1646847027403,0.91176,2743.8,2743.7,1.51442743]
[1646847027804,1.91176,2743.8,2743.7,1.51442743]
[1646847028207,0.91176,2743.8,2743.7,1.91132485]
[1646847028404,1.0,2743.9,2743.7,1.91132485]
[1646847028604,1.0,2743.9,2743.8,1.52641443]
[1646847028805,1.0,2743.9,2743.8,1.51442743]
[1646847029009,1.0,2744.1,2743.8,1.58568877]
[1646847029204,1.0,2744.2,2743.9,1.51442743]
[1646847029609,0.3,2744.3,2743.9,1.51442743]
[1646847029810,1.0,2744.0,2743.9,1.51442743]
[1646847030051,1.0,2744.0,2743.9,1.52623443]
[1646847030257,1.0,2744.0,2743.9,1.52625643]
[1646847030555,1.0,2744.0,2743.9,1.51442743]
[1646847030955,1.0,2744.0,2743.9,2.43766343]
[1646847031358,1.0,2744.0,2743.9,2.72595743]
[1646847031758,1.0,2744.0,2743.9,1.81442743]
[1646847031962,1.0,2744.0,2743.9,1.51442743]
[1646847032165,1.3,2744.0,2743.9,1.51442743]
[1646847032962,1.3,2744.0,2743.8,1.51442743]
[1646847033160,0.91175,2743.9,2743.7,0.40856442]
[1646847033360,1.0,2743.8,2743.7,0.39689742]
[1646847033571,1.0,2743.8,2743.7,1.51410892]
[1646847033796,1.0,2743.8,2743.7,1.52593692]
[1646847033999,1.0,2743.8,2743.7,2.00061378]
[1646847034397,1.9116,2744.2,2743.7,3.09747791]
[1646847034600,1.9116,2744.2,2744.0,0.012125]
[1646847034801,1.9116,2744.2,2744.1,1.51410892]
[1646847034802,0.9116,2744.2,2744.1,1.51410892]
[1646847035000,0.9116,2744.2,2744.1,1.52612692]
[1646847035301,2.8232,2744.2,2744.1,1.51410892]
[1646847037102,4.0348948,2744.2,2744.0,1.51410892]
[1646847037307,4.0348948,2744.2,2744.1,1.51410892]
[1646847037546,2.1232,2744.2,2744.1,1.51410892]
[1646847037750,2.1232,2744.2,2743.7,0.48111286]
[1646847037751,2.1232,2744.2,2743.8,1.52577592]
[1646847037952,1.82349,2744.1,2743.9,1.52604792]
[1646847038152,1.82349,2744.1,2744.0,1.51410892]
[1646847038654,2.82349,2744.1,2744.0,1.51410892]
[1646847039252,2.82349,2744.1,2744.0,1.91100634]
[1646847041825,2.82349,2744.1,2744.0,0.39689742]
[1646847043030,6.32349,2744.1,2744.0,0.39689742]
[1646847043229,6.32349,2744.1,2743.9,0.39689742]
[1646847043230,5.5,2744.0,2743.9,0.39689742]
[1646847043429,5.5,2744.0,2743.6,0.61518887]
[1646847043430,9.526,2744.0,2743.6,0.61518887]
[1646847043627,10.826,2744.0,2743.7,1.51448201]
[1646847043829,0.912,2743.9,2743.8,0.39689742]
[1646847044030,5.90913653,2743.9,2743.8,0.39689742]
[1646847044428,9.76548686,2743.9,2743.8,0.39689742]
[1646847045049,8.76435033,2743.9,2743.8,0.39689742]
[1646847045249,2.408,2743.9,2743.8,0.39689742]
[1646847045455,2.408,2743.9,2743.8,1.9112768]
[1646847046455,1.0,2743.9,2743.8,1.9112768]
[1646847046657,0.3,2744.0,2743.8,1.9112768]
[1646847046855,0.8602347,2744.1,2743.9,1.51437938]
[1646847047560,1.0,2744.0,2743.9,1.51437938]
[1646847049197,1.0,2744.0,2743.9,0.39689742]
[1646847049396,1.0,2744.0,2743.9,1.9112768]
[1646847050801,1.91173,2744.0,2743.9,0.39689742]
[1646847051001,5.41173,2744.0,2743.9,0.39689742]
[1646847051602,2.45417792,2744.0,2743.9,0.39689742]
[1646847052961,2.98017792,2744.0,2743.9,0.39689742]
[1646847053355,2.98017792,2744.0,2743.9,1.91129048]
[1646847053956,1.0,2744.0,2743.9,1.91129048]
[1646847054157,0.55769966,2744.1,2743.9,1.95219648]
[1646847054357,0.55769966,2744.1,2744.0,1.51439306]
[1646847054754,0.55769966,2744.1,2744.0,1.53802106]
[1646847054954,1.0,2744.2,2744.0,1.92300748]
[1646847055154,1.0,2744.2,2744.1,1.51439306]
[1646847055355,1.0,2744.2,2744.1,1.52651006]
[1646847056901,1.0,2744.3,2744.1,1.51439306]
[1646847057102,1.3,2744.2,2744.1,1.51439306]
[1646847057504,1.3,2744.2,2744.1,1.54532606]
[1646847057704,1.3,2744.2,2744.1,1.53809206]
[1646847059807,1.3,2744.2,2744.1,1.52616606]
[1646847060247,1.3,2744.2,2744.1,1.92306348]
[1646847061049,1.3,2744.2,2744.1,0.40867042]
[1646847061552,1.3,2744.3,2744.1,1.92278393]
[1646847061750,1.0,2744.2,2744.1,0.40867042]
[1646847061951,1.0,2744.2,2744.1,1.92277457]
[1646847062151,1.3,2744.2,2744.1,1.91100157]
[1646847064398,1.3,2744.2,2744.1,1.92272857]
[1646847064603,1.0,2744.3,2744.1,1.93478357]
[1646847064802,1.0,2744.3,2744.2,3.12904387]
[1646847065001,1.0,2744.7,2744.2,3.15228587]
[1646847065206,1.0,2744.6,2744.3,1.51410415]
[1646847065401,1.0,2744.6,2744.3,1.52590115]
[1646847065402,0.003672,2744.4,2744.3,1.52590115]
[1646847065605,0.003672,2744.4,2744.3,1.51410415]
[1646847065807,0.003672,2744.4,2744.3,1.52580715]
[1646847066409,1.0,2744.6,2744.3,1.52580715]
[1646847066410,0.00367201,2744.5,2744.3,1.52593915]
[1646847066608,0.00367201,2744.5,2744.4,1.6120569]
[1646847066908,0.00367201,2744.5,2744.4,1.53738315]
[1646847067106,0.00367201,2744.5,2744.4,1.53651519]
[1646847067408,0.00367201,2744.5,2744.4,1.51323619]
[1646847067409,1.3,2744.5,2744.4,1.51323619]
[1646847067662,1.3,2744.5,2744.2,1.61493972]
[1646847067663,5.326,2744.5,2744.2,1.61493972]
[1646847067864,0.0479453,2744.4,2744.2,1.61493972]
[1646847068063,2.4377536,2744.3,2744.2,1.61493972]
[1646847068265,2.7377536,2744.3,2744.2,1.61493972]
[1646847068664,1.826,2744.3,2744.2,1.61493972]
[1646847070567,1.826,2744.3,2744.2,2.01183714]
[1646847073808,1.3,2744.3,2744.2,2.01183714]
[1646847076461,1.0,2743.7,2743.6,0.61518887]
[1646847076657,1.526,2743.7,2743.6,0.61518887]
[1646847076857,2.73788,2743.7,2743.6,0.61518887]
[1646847077058,1.0,2743.7,2743.6,0.61518887]
[1646847077259,1.3,2743.7,2743.6,0.82886112]
[1646847077457,1.3,2743.7,2743.6,0.81707212]
[1646847077656,1.3,2743.7,2743.6,0.82887512]
[1646847078058,1.3,2743.7,2743.6,0.81707212]
[1646847078059,3.25016961,2743.7,2743.6,0.81707212]
[1646847078257,3.77616961,2743.7,2743.6,0.81707212]
[1646847079305,2.7378,2743.7,2743.6,0.81707212]
[1646847082007,2.7378,2743.7,2743.6,0.82875712]
[1646847082206,2.7378,2743.7,2743.6,0.81707212]
[1646847082659,2.7378,2743.7,2743.6,0.82877212]
[1646847082959,2.7378,2743.7,2743.6,0.84064312]
[1646847083158,1.826,2743.7,2743.6,0.84064312]
[1646847083358,1.3,2743.7,2743.6,0.84064312]
[1646847084766,4.173334,2744.0,2743.8,0.20188325]
[1646847085165,2.82361,2743.9,2743.8,0.20188325]
[1646847085366,2.82361,2743.9,2743.7,0.31508129]
[1646847085367,5.5,2743.8,2743.7,0.31508129]
[1646847085566,6.026,2743.8,2743.7,0.31508129]
[1646847085866,5.526,2743.8,2743.7,0.31508129]
[1646847086064,2.526,2743.8,2743.7,0.31508129]
[1646847086312,1.526,2743.8,2743.7,0.31508129]
[1646847086504,2.526,2743.8,2743.7,0.31508129]
[1646847086809,1.526,2743.8,2743.7,0.31508129]
[1646847087004,2.526,2743.8,2743.7,0.31508129]
[1646847087404,1.526,2743.8,2743.7,0.31508129]
[1646847087604,2.526,2743.8,2743.7,0.31508129]
[1646847087804,1.526,2743.8,2743.7,0.31508129]
[1646847088004,5.38247801,2743.8,2743.7,0.31508129]
[1646847093258,3.5,2743.7,2743.6,0.61518887]
[1646847093459,7.026,2743.7,2743.6,0.61518887]
[1646847093660,9.026,2743.7,2743.6,0.61518887]
[1646847095308,5.526,2743.7,2743.6,0.61518887]
[1646847095610,2.526,2743.7,2743.6,0.61518887]
[1646847095807,1.526,2743.7,2743.6,0.61518887]
[1646847096007,1.0,2743.7,2743.6,0.61518887]
[1646847096207,1.0,2743.7,2743.6,2.1295109]
[1646847097659,1.0,2743.7,2743.6,2.1412649]
[1646847099064,1.0,2743.7,2743.6,2.0295109]
[1646847100263,1.0,2743.7,2743.6,0.51518887]
[1646847100664,1.0,2743.7,2743.6,2.02957218]
[1646847101336,1.0,2743.7,2743.6,0.51518887]
[1646847101531,1.0,2743.7,2743.6,2.04129752]
[1646847102534,1.0,2743.7,2743.6,0.52692887]
[1646847103132,1.0,2743.7,2743.6,2.02956987]
[1646847103534,1.0,2743.7,2743.6,0.51518887]
[1646847103935,1.0,2743.7,2743.6,2.02956745]
[1646847110121,1.0,2743.7,2743.6,6.40837379]
[1646847110317,1.0,2743.7,2743.6,2.92745979]
[1646847110516,2.85647801,2743.8,2743.7,0.61525122]
[1646847110723,2.85647801,2743.8,2743.7,2.1417548]
[1646847110917,2.85647801,2743.8,2743.7,2.1296298]
[1646847111119,3.85647801,2743.8,2743.7,2.1296298]
[1646847111418,6.59236801,2743.8,2743.6,0.52685587]
[1646847111616,7.47327719,2743.8,2743.6,0.52685587]
[1646847111817,0.912,2743.6,2743.5,0.011667]
[1646847112019,0.912,2743.6,2743.4,0.012125]
[1646847112219,1.0,2743.4,2743.3,0.00367334]
[1646847112579,1.82389,2743.4,2743.3,0.01579834]
[1646847112776,2.82389,2743.4,2743.3,0.01579834]
[1646847113174,4.64779,2743.4,2743.3,0.012125]
[1646847123578,4.64779,2743.4,2743.3,0.011734]
[1646847123809,4.64779,2743.4,2743.2,0.02736974]
[1646847123810,5.5598266,2743.4,2743.2,0.02736974]
[1646847124010,5.5598266,2743.4,2743.2,0.011667]
[1646847124215,1.0,2743.3,2743.2,0.011667]
[1646847124413,1.0,2743.3,2743.2,0.00378055]
[1646847124615,6.41194,2743.2,2742.8,0.67579384]
[1646847124817,6.41194,2743.2,2742.6,0.90147659]
[1646847124818,1.4382256,2743.1,2742.6,0.67579384]
[1646847125016,0.06442431,2743.0,2742.5,8.27429384]
[1646847125218,1.0,2742.7,2742.5,6.4413]
[1646847125418,1.0,2742.7,2742.4,0.67579384]
[1646847125617,1.0,2742.6,2742.4,0.67579384]
[1646847125816,1.0,2742.5,2742.4,0.67579384]
[1646847127018,1.0,2742.5,2742.3,0.67579384]
[1646847127418,0.3,2742.5,2742.3,0.67579384]
[1646847127707,1.0,2742.4,2742.3,0.67579384]
[1646847127907,1.3,2742.4,2742.3,0.67991768]
[1646847128808,1.3,2742.4,2742.2,0.67579384]
[1646847129009,0.91232,2742.3,2742.2,0.00412389]
[1646847129209,2.21232,2742.3,2742.2,0.00412389]
[1646847130010,3.1246641,2742.3,2742.2,0.67962159]
[1646847130210,2.21232,2742.3,2742.2,0.67962159]
[1646847130614,0.59637982,2742.3,2742.2,0.67962159]
[1646847130810,0.59637982,2742.3,2742.1,0.68374557]
[1646847131009,3.6493182,2742.4,2742.1,0.68374557]
[1646847131209,1.91172352,2742.3,2742.1,0.67962159]
[1646847131416,2.82404352,2742.3,2742.1,0.68374562]
[1646847131713,1.91169982,2742.3,2742.2,1.51496783]
[1646847132116,2.21169982,2742.3,2742.2,1.51496783]
[1646847132515,0.91241,2742.2,2741.9,2.19458942]
[1646847132719,0.91241,2742.2,2742.1,0.00404666]
[1646847132920,0.91241,2742.2,2742.1,1.51905178]
[1646847133520,0.91241,2742.2,2742.1,1.51500512]
[1646847134120,3.18740306,2742.3,2742.1,5.69462671]
[1646847134121,2.1246584,2742.3,2742.1,5.69462671]
[1646847134322,1.21232,2742.3,2742.2,2.19462671]
[1646847134721,0.3,2742.3,2742.2,2.19462671]
[1646847135175,0.9121,2742.5,2742.2,2.19462671]
[1646847135176,1.2121,2742.5,2742.2,2.19462671]
[1646847135778,1.2121,2742.5,2742.3,2.19462671]
[1646847135976,1.2121,2742.5,2742.4,1.51500512]
[1646847136182,2.1242108,2742.5,2742.4,1.51500512]
[1646847136382,2.1242108,2742.5,2742.3,2.19462671]
[1646847136581,2.1242108,2742.5,2742.4,1.51500512]
[1646847136782,2.66766646,2742.5,2742.4,1.51500512]
[1646847136983,2.66766646,2742.5,2742.3,1.51500512]
[1646847137183,2.66766646,2742.5,2742.2,0.68348399]
[1646847137184,2.66766646,2742.5,2742.4,1.51500512]
[1646847137988,2.1242108,2742.5,2742.4,1.51500512]
[1646847139220,2.1242108,2742.5,2742.3,1.51886744]
[1646847139519,2.1242108,2742.5,2742.3,1.51500512]
[1646847139918,2.1242108,2742.5,2742.3,0.00387478]
[1646847140520,2.1242108,2742.5,2742.3,1.5188799]
[1646847140722,2.1242108,2742.5,2742.3,1.51500512]
[1646847140927,2.1242108,2742.5,2742.4,1.51500512]
[1646847141122,2.1242108,2742.5,2742.2,0.67962159]
[1646847141123,2.1242108,2742.5,2742.3,0.00387478]
[1646847141523,2.1242108,2742.5,2742.3,1.5188799]
[1646847142024,2.1242108,2742.5,2742.3,1.51500512]
[1646847142222,2.1242108,2742.5,2742.4,1.51500512]
[1646847142668,0.3,2742.5,2742.4,5.01500512]
[1646847142868,0.3,2742.8,2742.4,5.69462671]
[1646847143069,0.3,2742.9,2742.7,0.9137727]
[1646847143269,0.36034542,2743.0,2742.8,1.51500512]
[1646847143670,0.06034542,2743.0,2742.8,1.51500512]
[1646847144070,0.06034542,2743.0,2742.9,3.5]
[1646847144271,0.99937982,2743.2,2742.9,5.01500512]
[1646847144471,0.99937982,2743.2,2743.0,1.51500512]
[1646847145073,0.99937982,2743.2,2743.1,5.01500512]
[1646847145271,0.99937982,2743.2,2743.1,1.51500512]
[1646847145673,0.99937982,2743.2,2743.0,1.51500512]
[1646847145881,1.05872839,2743.5,2743.1,5.01500512]
[1646847146078,0.05934857,2743.5,2743.2,1.5145002]
[1646847146316,0.07285362,2743.7,2743.3,1.5145002]
[1646847146517,0.07285362,2743.7,2743.1,0.91169]
[1646847146518,0.06118662,2743.7,2743.4,1.5145002]
[1646847146716,0.06118662,2743.7,2743.5,1.5145002]
[1646847146916,0.06118662,2743.7,2743.6,1.5145002]
[1646847147117,0.06118662,2743.7,2743.3,1.5145002]
[1646847148522,0.06118662,2743.7,2743.6,1.09461083]
[1646847148725,1.91109982,2743.8,2743.6,1.09461083]
[1646847148920,1.91109982,2743.8,2743.7,1.5145002]
[1646847149224,0.99937982,2743.8,2743.7,1.5145002]
[1646847150085,1.29937982,2743.8,2743.7,1.5145002]
[1646847152080,1.29937982,2743.8,2743.1,0.00387756]
[1646847152081,0.97371278,2743.7,2743.1,0.00387756]
[1646847152280,0.97371278,2743.7,2743.1,1.51836423]
[1646847152281,0.05871543,2743.5,2743.1,1.51836423]
[1646847152580,0.97064253,2743.5,2743.2,1.51448667]
[1646847152782,1.27064253,2743.5,2743.3,1.51448667]
[1646847152979,3.09450253,2743.5,2743.4,1.51448667]
[1646847153179,0.91197,2743.2,2743.1,0.011667]
[1646847153379,3.0357871,2743.5,2743.3,0.64831378]
[1646847153578,3.0357871,2743.5,2743.4,1.51461415]
[1646847153579,1.2119271,2743.5,2743.4,1.51461415]
[1646847154013,2.21130692,2743.5,2743.4,1.51461415]
[1646847154215,1.29937982,2743.5,2743.4,1.51461415]
[1646847155423,2.21129982,2743.5,2743.4,1.51461415]
[1646847156926,1.21192,2743.5,2743.4,1.51461415]
[1646847157128,0.3,2743.5,2743.4,1.51461415]
[1646847157429,0.3,2743.5,2743.4,1.52628715]
[1646847157674,0.3,2743.5,2743.4,1.51461415]
[1646847157875,0.3,2743.5,2743.4,1.52635415]
[1646847158076,1.8238541,2743.6,2743.4,1.54536515]
[1646847158273,1.8238541,2743.6,2743.5,1.51461415]
[1646847158472,1.8238541,2743.6,2743.5,1.52643115]
[1646847159275,1.8238541,2743.6,2743.5,1.51461415]
[1646847159675,1.8238541,2743.6,2743.4,1.51461415]
[1646847159875,3.6475941,2743.6,2743.4,1.51461415]
[1646847160278,0.91184,2743.5,2743.4,1.51461415]
[1646847160676,1.8238541,2743.6,2743.4,1.51461415]
[1646847161078,1.8238541,2743.6,2743.4,1.52639815]
[1646847161314,1.8238541,2743.6,2743.5,1.51461415]
[1646847162316,2.7356641,2743.6,2743.5,1.51461415]
[1646847162517,4.26104392,2743.6,2743.5,1.51461415]
[1646847162721,0.04709032,2743.4,2743.2,0.023334]
[1646847163019,3.6478699,2743.4,2743.3,1.5146952]
[1646847163222,3.6478699,2743.4,2743.2,1.5146952]
[1646847163223,4.64724972,2743.4,2743.2,1.5146952]
[1646847163521,0.91195,2743.3,2743.2,1.5263622]
[1646847163820,1.91132982,2743.3,2743.2,1.5146952]
[1646847164724,1.91132982,2743.3,2743.0,0.011667]
[1646847164725,6.32339982,2743.3,2743.0,0.011667]
[1646847164924,3.34939982,2743.3,2742.9,0.011667]
[1646847165179,3.0,2743.1,2742.5,8.18432159]
[1646847165378,2.7365256,2743.0,2742.5,0.67962159]
[1646847165682,1.82429,2742.8,2742.4,1.57869433]
[1646847165875,1.82429,2742.8,2742.6,0.012125]
[1646847166077,1.82429,2742.8,2742.6,0.02425]
[1646847166276,0.91217,2742.9,2742.7,0.012125]
[1646847166476,0.91217,2742.9,2742.7,0.02425]
[1646847166679,0.9121076,2742.8,2742.7,0.02425]
[1646847166879,0.9121076,2742.8,2742.7,0.024176]
[1646847167576,1.8242276,2742.8,2742.7,0.024176]
[1646847167779,1.8242276,2742.8,2742.7,0.036301]
[1646847168380,1.8242276,2742.8,2742.7,0.024176]
[1646847168813,1.8242276,2742.8,2742.4,0.65616959]
[1646847170019,1.8242276,2742.8,2742.3,0.90147659]
[1646847170817,1.8242276,2742.8,2742.2,2.44994745]
[1646847170818,1.8242276,2742.8,2742.2,3.35142404]
[1646847171019,1.8242276,2742.8,2742.4,0.00253335]
[1646847171618,1.8242276,2742.8,2742.2,0.85400994]
[1646847172417,1.8242276,2742.8,2742.3,1.00596705]
[1646847172673,0.9121076,2742.8,2742.3,1.00596705]
[1646847173271,0.59583135,2743.1,2742.3,1.00596705]
[1646847173672,0.04910296,2743.2,2742.3,1.00596705]
[1646847173872,2.82363055,2743.1,2742.3,1.00596705]
[1646847174874,0.04828521,2742.9,2742.3,1.0100937]
[1646847175074,0.9120825,2742.8,2742.3,1.0100937]
[1646847175275,0.9121,2742.7,2742.3,1.0100937]
[1646847175673,0.9121,2742.7,2742.1,0.06869798]
[1646847175875,0.9121,2742.7,2742.3,0.00412657]
[1646847176718,0.9121,2742.7,2742.1,0.06869798]
[1646847177124,0.91215,2742.6,2742.3,0.00412654]
[1646847178229,0.91215,2742.6,2742.3,0.00412651]
[1646847178826,1.8242592,2742.5,2742.4,0.67908655]
[1646847179026,2.82409055,2742.5,2742.3,0.00412651]
[1646847179231,3.73626055,2742.5,2742.1,0.06869798]
[1646847179426,3.73626055,2742.5,2742.4,0.67924025]
[1646847179631,3.73626055,2742.5,2742.3,0.00412651]
[1646847179832,0.912095,2742.4,2742.3,0.00412651]
[1646847180470,0.912095,2742.4,2742.1,3.56869798]
[1646847180769,0.912095,2742.4,2742.2,0.90978297]
[1646847181171,0.912095,2742.4,2742.2,0.00412653]
[1646847181571,1.824285,2742.4,2742.1,0.97435442]
[1646847181970,1.824285,2742.4,2742.2,0.00412658]
[1646847182773,1.824285,2742.4,2742.3,0.67934412]
[1646847183175,1.824285,2742.4,2742.1,0.06869798]
[1646847183176,1.824285,2742.4,2742.2,0.6833469]
[1646847183375,1.824285,2742.4,2742.2,0.00400278]
[1646847183574,0.0533446,2742.3,2742.2,0.00400278]
[1646847183818,1.05317595,2742.3,2742.2,0.00400278]
[1646847184019,1.05317595,2742.3,2742.1,0.67934412]
[1646847184220,0.99983135,2742.3,2742.1,0.67934412]
[1646847184420,0.99983135,2742.2,2742.1,0.68334694]
[1646847185025,0.99983135,2742.2,2742.1,2.19815376]
[1646847185221,0.99983135,2742.2,2742.1,2.19415094]
[1646847185424,0.99983135,2742.2,2742.1,1.51480682]
[1646847186225,0.99983135,2742.2,2742.1,0.69123912]
[1646847186424,0.99983135,2742.3,2742.1,0.69123912]
[1646847186627,5.61129915,2742.4,2742.2,0.69109909]
[1646847186827,5.61129915,2742.4,2742.3,1.51480682]
[1646847187025,5.61129915,2742.4,2742.3,1.52654982]
[1646847187430,3.6493118,2742.4,2742.3,2.21739691]
[1646847188485,3.6493118,2742.4,2742.3,5.72940391]
[1646847188486,0.912095,2742.4,2742.3,5.72940391]
[1646847188675,1.86771173,2742.7,2742.3,5.05042982]
[1646847188876,1.86771173,2742.7,2742.6,0.012125]
[1646847189077,1.86771173,2742.7,2742.6,0.024052]
[1646847189279,1.86771173,2742.7,2742.6,1.53885882]
[1646847189679,1.8240728,2742.7,2742.6,1.53885882]
[1646847189979,2.1240728,2742.7,2742.6,1.53885882]
[1646847192830,2.1240728,2742.7,2742.6,1.52693182]
[1646847193027,2.1240728,2742.7,2742.6,1.51480682]
[1646847193426,0.50853317,2742.7,2742.6,1.51480682]
[1646847194527,0.50853317,2742.7,2742.3,0.011667]
[1646847194528,0.05396363,2742.6,2742.3,0.011667]
[1646847194727,0.05396363,2742.6,2742.4,1.51471076]
[1646847194728,1.49227363,2742.6,2742.4,1.51471076]
[1646847194928,0.95848614,2742.5,2742.2,0.67885499]
[1646847195174,0.05240922,2742.3,2742.2,0.67885499]
[1646847195375,1.05224057,2742.3,2742.2,0.67885499]
[1646847195772,1.05224057,2742.3,2742.2,1.51472118]
[1646847196273,2.736851,2742.4,2742.2,5.71859906]
[1646847196274,2.82439525,2742.4,2742.2,5.71859906]
[1646847196473,1.8245814,2742.5,2742.3,5.71267857]
[1646847196672,1.8245814,2742.5,2742.4,2.21304657]
[1646847197376,1.8245814,2742.5,2742.4,1.53397218]
[1646847198677,2.1245814,2742.5,2742.4,1.53397218]
[1646847201527,2.1245814,2742.5,2742.4,2.21326415]
[1646847201727,2.1245814,2742.5,2742.4,1.53397218]
[1646847203184,2.1245814,2742.5,2742.4,1.51472118]
[1646847203375,2.1245814,2742.5,2742.4,2.20596347]
[1646847203977,2.1245814,2742.5,2742.4,2.19416447]
[1646847204378,2.1245814,2742.5,2742.4,2.20592647]
[1646847204778,2.1245814,2742.5,2742.4,2.20593047]
[1646847204978,2.1245814,2742.5,2742.4,1.52648718]
[1646847205281,2.1245814,2742.5,2742.4,0.67969462]
[1646847205578,2.1245814,2742.5,2742.4,2.1944158]